bitfinex/quotes_SOLUSD_20250912
["timestamp","ask_amount","ask_price","bid_price","bid_amount"]
[1757708487291,1.06647781,239.67,239.58,30.17395781]
[1757708487487,1.06647781,239.66,239.58,30.17395781]
[1757708487695,1.06647781,239.65,239.58,26.0]
[1757708487909,1.06647781,239.64,239.58,26.0]
[1757708488195,1.78739345,239.63,239.57,0.3711]
[1757708488395,1.06739345,239.62,239.57,0.3711]
[1757708488615,1.78739345,239.61,239.57,0.3711]
[1757708488794,1.06739345,239.6,239.57,0.3711]
[1757708488991,1.78739345,239.6,239.57,0.3711]
[1757708489309,0.72,239.59,239.57,0.3711]
[1757708489802,0.72,239.61,239.57,0.3711]
[1757708489995,1.78739345,239.6,239.57,0.3711]
[1757708490196,0.72,239.6,239.57,0.3711]
[1757708491221,1.06741203,239.6,239.57,0.3711]
[1757708491429,1.78757743,239.64,239.57,0.3711]
[1757708491600,1.78757743,239.63,239.57,0.3711]
[1757708491799,1.06757743,239.62,239.57,0.3711]
[1757708492016,1.06757743,239.61,239.57,0.3711]
[1757708492606,0.72,239.61,239.57,0.3711]
[1757708492802,0.72,239.64,239.57,0.3711]
[1757708493006,1.06762835,239.63,239.57,0.3711]
[1757708493218,1.06762835,239.62,239.57,0.3711]
[1757708493433,1.06762835,239.61,239.57,0.3711]
[1757708493608,1.06783388,239.66,239.57,0.3711]
[1757708493800,1.06783388,239.65,239.57,0.3711]
[1757708494001,1.06783388,239.64,239.57,0.3711]
[1757708494206,0.72,239.65,239.57,0.3711]
[1757708494412,1.06805587,239.64,239.57,0.3711]
[1757708494629,1.78805587,239.63,239.57,26.3711]
[1757708494827,0.72,239.63,239.57,26.3711]
[1757708495236,0.06,239.71,239.57,26.3711]
[1757708495237,0.72,239.66,239.57,26.3711]
[1757708495411,1.06831789,239.65,239.57,26.3711]
[1757708495612,1.06831789,239.64,239.57,30.54516755]
[1757708495824,1.06831789,239.63,239.57,26.3711]
[1757708496027,1.06860941,239.64,239.57,26.3711]
[1757708496325,1.06860941,239.66,239.57,26.3711]
[1757708496527,13.65559401,239.71,239.57,26.3711]
[1757708496528,1.78860941,239.65,239.57,26.3711]
[1757708496721,1.06860941,239.64,239.57,30.54521527]
[1757708497032,13.65559401,239.71,239.57,30.54521527]
[1757708497033,0.72,239.67,239.57,30.54521527]
[1757708497235,1.06884103,239.66,239.57,30.54521527]
[1757708497413,1.06884103,239.65,239.57,30.54521527]
[1757708497732,0.72,239.67,239.57,30.54521527]
[1757708497915,1.06896035,239.66,239.57,30.54521527]
[1757708498117,0.72,239.67,239.57,30.54521527]
[1757708498118,1.06896035,239.65,239.57,30.54521527]
[1757708498322,1.06896035,239.66,239.57,30.54521527]
[1757708498625,1.06896035,239.65,239.57,30.54521527]
[1757708498833,1.06896035,239.66,239.57,30.54521527]
[1757708499135,1.06896035,239.65,239.57,30.54521527]
[1757708499425,1.06896035,239.66,239.57,30.54521527]
[1757708499633,1.06896035,239.65,239.57,30.54521527]
[1757708499839,1.06896035,239.66,239.57,30.54521527]
[1757708500024,1.06896035,239.65,239.57,30.54521527]
[1757708500221,0.72,239.67,239.57,26.3711]
[1757708500417,1.78910679,239.66,239.57,26.3711]
[1757708500731,1.06910679,239.65,239.57,26.3711]
[1757708500902,0.72,239.66,239.57,26.3711]
[1757708501232,1.06900382,239.65,239.57,26.3711]
[1757708501429,0.72,239.66,239.57,26.3711]
[1757708501632,1.78906771,239.65,239.57,26.3711]
[1757708501941,0.72,239.65,239.57,26.3711]
[1757708502108,1.06919945,239.64,239.57,26.3711]
[1757708502313,0.72,239.65,239.57,26.3711]
[1757708503113,1.06919751,239.64,239.57,26.3711]
[1757708503428,0.72,239.65,239.6,26.0]
[1757708504121,1.06932527,239.64,239.6,26.0]
[1757708504321,0.72,239.65,239.6,26.0]
[1757708504521,0.72,239.65,239.57,33.6911]
[1757708504522,1.78975195,239.64,239.57,0.3711]
[1757708504836,14.66534596,239.63,239.57,0.3711]
[1757708505026,1.78975195,239.62,239.57,0.3711]
[1757708505225,1.06975195,239.61,239.57,0.3711]
[1757708505429,1.06975195,239.6,239.57,0.3711]
[1757708505732,1.78975195,239.59,239.57,0.3711]
[1757708505913,0.72,239.59,239.57,0.3711]
[1757708506322,1.06983594,239.58,239.57,0.3711]
[1757708509344,1.78983594,239.58,239.57,0.3711]
[1757708509518,1.06983594,239.58,239.57,0.3711]
[1757708521151,1.07341946,239.58,239.57,0.3711]
[1757708522139,1.07358316,239.58,239.57,0.3711]
[1757708522661,0.7,239.6,239.57,0.3711]
[1757708523246,43.76766915,239.69,239.57,0.3711]
[1757708523431,14.29559401,239.68,239.57,0.3711]
[1757708523635,1.07349902,239.67,239.57,0.3711]
[1757708523851,0.7,239.66,239.57,0.3711]
[1757708525461,1.07388596,239.65,239.57,4.54521663]
[1757708525663,1.07388596,239.65,239.6,26.0]
[1757708526257,1.07388596,239.65,239.61,0.41734485]
[1757708526464,1.07440428,239.64,239.61,0.41734485]
[1757708526752,0.76,239.71,239.61,0.41734485]
[1757708526952,0.76,239.71,239.62,26.0]
[1757708527187,0.7,239.7,239.62,26.0]
[1757708527362,0.7,239.7,239.6,41.0248866]
[1757708528039,0.7,239.7,239.6,30.59082984]
[1757708528240,0.7,239.7,239.6,30.17346757]
[1757708528448,0.06,239.71,239.6,30.17346757]
[1757708528758,0.7,239.69,239.6,30.17346757]
[1757708528953,0.76,239.71,239.6,30.17346757]
[1757708529664,0.76,239.71,239.6,4.17346757]
[1757708529843,0.76,239.71,239.6,40.60752433]
[1757708530344,0.06,239.71,239.63,26.0]
[1757708530661,0.06,239.71,239.67,26.0]
[1757708531355,0.06,239.71,239.7,26.0]
[1757708532657,0.76,239.71,239.67,26.0]
[1757708532832,0.06,239.71,239.67,33.28]
[1757708533038,0.7,239.7,239.67,33.28]
[1757708533238,0.7,239.7,239.65,26.0]
[1757708533543,0.7,239.7,239.65,59.28]
[1757708534139,0.06,239.71,239.65,59.28]
[1757708534462,0.7,239.69,239.65,59.28]
[1757708534835,0.06,239.71,239.65,59.28]
[1757708535044,0.7,239.69,239.65,59.28]
[1757708535960,0.7,239.68,239.63,26.0]
[1757708536158,0.06,239.71,239.64,26.0]
[1757708536474,0.7,239.67,239.57,0.3711]
[1757708536652,0.7,239.67,239.58,30.68]
[1757708536844,0.7,239.67,239.61,26.0]
[1757708537848,0.06,239.71,239.61,26.0]
[1757708538068,0.7,239.66,239.57,0.3711]
[1757708538267,0.7,239.66,239.57,59.6311]
[1757708538459,0.7,239.65,239.57,59.6311]
[1757708538665,1.77130655,239.64,239.57,59.6311]
[1757708538860,0.7,239.63,239.57,59.6311]
[1757708539260,0.7,239.62,239.57,0.3711]
[1757708539459,4.23171722,239.71,239.57,0.3711]
[1757708539460,0.7,239.61,239.57,0.3711]
[1757708539651,0.7,239.6,239.57,0.3711]
[1757708539869,13.59559401,239.69,239.57,0.3711]
[1757708539870,0.7,239.59,239.57,0.3711]
[1757708541150,0.7,239.58,239.57,0.3711]
[1757708545872,1.74214109,239.58,239.57,0.3711]
[1757708546072,0.7,239.58,239.57,0.3711]
[1757708550073,1.74214302,239.58,239.57,0.3711]
[1757708552074,0.65,239.6,239.57,0.3711]
[1757708552672,0.65,239.63,239.57,0.3711]
[1757708552977,1.04214867,239.62,239.57,0.3711]
[1757708553155,1.04214867,239.61,239.57,0.3711]
[1757708553355,0.65,239.63,239.57,0.3711]
[1757708553652,1.04211829,239.62,239.57,0.3711]
[1757708553857,1.04211829,239.61,239.57,0.3711]
[1757708554057,0.65,239.64,239.57,0.3711]
[1757708554269,1.04212527,239.63,239.57,0.3711]
[1757708554479,1.69212527,239.62,239.57,0.3711]
[1757708554676,1.69212527,239.61,239.57,0.3711]
[1757708554974,0.65,239.61,239.57,0.3711]
[1757708555882,0.65,239.6,239.57,0.3711]
[1757708556062,0.65,239.61,239.57,0.3711]
[1757708557675,0.65,239.6,239.57,0.3711]
[1757708559062,1.69203465,239.62,239.57,0.3711]
[1757708559270,0.65,239.61,239.57,0.3711]
[1757708559976,1.04203458,239.62,239.57,0.3711]
[1757708560180,0.65,239.6,239.57,0.3711]
[1757708560781,0.06,239.63,239.57,0.3711]
[1757708560782,0.65,239.59,239.57,0.3711]
[1757708561266,0.65,239.61,239.57,0.3711]
[1757708561586,0.65,239.6,239.57,0.3711]
[1757708564382,0.65,239.59,239.57,0.3711]
[1757708565263,1.04207039,239.61,239.57,0.3711]
[1757708565471,0.65,239.6,239.57,0.3711]
[1757708565669,0.65,239.59,239.57,0.3711]
[1757708566803,1.04207575,239.62,239.57,0.3711]
[1757708566993,0.06,239.63,239.57,0.3711]
[1757708567368,0.06,239.63,239.6,26.0]
[1757708568294,0.06,239.63,239.6,30.1736165]
[1757708568992,0.06,239.63,239.61,26.0]
[1757708570088,0.06,239.63,239.6,26.0]
[1757708570288,0.06,239.63,239.61,26.0]
[1757708570879,0.06,239.63,239.59,1.66920525]
[1757708570880,0.06,239.63,239.6,26.0]
[1757708572383,0.78,239.63,239.6,26.0]
[1757708572589,0.72,239.62,239.6,26.0]
[1757708572786,0.06,239.63,239.6,26.0]
[1757708573678,0.78,239.63,239.6,26.0]
[1757708574173,0.06,239.63,239.6,26.0]
[1757708576297,0.71,239.63,239.6,26.0]
[1757708580398,0.71,239.63,239.6,30.17359849]
[1757708580601,0.06,239.63,239.6,30.17359849]
[1757708584783,0.71,239.63,239.6,26.0]
[1757708585592,0.71,239.63,239.6,30.17359524]
[1757708585794,0.06,239.63,239.6,26.0]
[1757708585997,0.06,239.63,239.6,30.1735551]
[1757708586705,0.06,239.63,239.6,41.02497413]
[1757708586910,0.06,239.63,239.62,26.0]
[1757708587100,0.06,239.63,239.62,59.18]
[1757708587614,0.06,239.63,239.62,77.36619579]
[1757708589310,0.06,239.68,239.62,87.79938166]
[1757708589493,0.06,239.68,239.67,4.17240372]
[1757708589693,0.06,239.68,239.67,37.76964409]
[1757708589888,0.06,239.71,239.7,26.0]
[1757708590090,0.06,239.71,239.7,59.59718815]
[1757708591710,0.06,239.71,239.7,59.18]
[1757708591711,0.71,239.71,239.7,59.18]
[1757708591905,0.06,239.71,239.7,59.18]
[1757708593105,0.06,239.71,239.7,63.76906966]
[1757708594097,0.06,239.71,239.7,63.35188151]
[1757708594800,0.06,239.71,239.7,59.18]
[1757708594997,0.06,239.71,239.7,63.35188151]
[1757708599925,0.71,239.71,239.7,63.35188151]
[1757708600307,0.06,239.71,239.7,63.35188151]
[1757708601323,0.71,239.71,239.7,63.35188151]
[1757708604332,0.71,239.71,239.68,1.66857858]
[1757708604522,0.71,239.71,239.66,26.0]
[1757708604523,0.68,239.7,239.66,26.0]
[1757708604725,0.06,239.71,239.69,26.0]
[1757708604927,0.68,239.7,239.64,1.66885704]
[1757708605125,0.68,239.69,239.65,33.14]
[1757708605334,0.68,239.68,239.65,33.14]
[1757708605535,0.68,239.67,239.65,33.14]
[1757708605709,0.68,239.66,239.65,33.14]
[1757708608714,0.68,239.66,239.63,26.0]
[1757708609018,0.68,239.65,239.63,59.12]
[1757708609209,0.68,239.64,239.63,59.12]
[1757708610032,0.68,239.66,239.63,59.12]
[1757708610217,0.68,239.65,239.63,59.12]
[1757708610425,0.68,239.7,239.63,59.12]
[1757708610611,0.68,239.7,239.65,4.20275192]
[1757708610811,0.68,239.7,239.66,33.12]
[1757708611717,0.06,239.71,239.66,33.53725778]
[1757708611922,0.06,239.71,239.67,4.17240372]
[1757708612247,0.74,239.71,239.68,33.12]
[1757708612613,0.06,239.71,239.68,33.12]
[1757708612938,0.06,239.74,239.71,26.0]
[1757708613238,0.06,239.74,239.72,33.12]
[1757708613935,0.06,239.74,239.73,4.17135944]
[1757708619924,0.06,239.74,239.73,4.58849538]
[1757708620142,0.06,239.76,239.73,4.58849538]
[1757708620344,1.04130105,239.8,239.74,33.1]
[1757708620538,0.06,239.81,239.74,33.1]
[1757708620847,1.04130083,239.8,239.74,33.1]
[1757708621023,0.06,239.81,239.75,0.41710114]
[1757708621224,1.04129547,239.8,239.76,33.1]
[1757708621431,0.06,239.81,239.76,33.1]
[1757708621642,1.04129525,239.8,239.76,33.1]
[1757708621845,0.06,239.81,239.76,33.1]
[1757708622037,1.0412951,239.8,239.76,33.1]
[1757708622246,0.06,239.81,239.76,33.1]
[1757708622550,1.72126492,239.8,239.76,33.1]
[1757708622733,0.68,239.79,239.76,33.1]
[1757708622933,0.68,239.78,239.76,33.1]
[1757708623723,0.68,239.78,239.76,37.27079976]
[1757708624232,1.72124995,239.8,239.76,59.1]
[1757708624541,0.68,239.79,239.76,59.1]
[1757708624864,0.68,239.78,239.76,59.1]
[1757708626355,0.06,239.81,239.76,26.0]
[1757708626356,1.04123291,239.8,239.76,26.0]
[1757708626534,0.68,239.78,239.76,26.0]
[1757708626867,0.68,239.78,239.76,59.08]
[1757708627935,0.68,239.78,239.73,30.17128721]
[1757708628149,0.68,239.78,239.74,33.08]
[1757708629033,0.74,239.78,239.74,33.08]
[1757708629734,0.74,239.78,239.73,30.85128721]
[1757708629945,0.06,239.78,239.74,37.93116648]
[1757708630257,0.06,239.78,239.75,33.08]
[1757708630258,0.76,239.78,239.75,33.08]
[1757708630433,0.76,239.78,239.73,26.0]
[1757708630627,0.7,239.77,239.74,33.08]
[1757708630826,0.7,239.76,239.74,33.08]
[1757708631453,0.06,239.78,239.74,33.08]
[1757708631626,0.06,239.78,239.74,33.76]
[1757708631830,0.06,239.78,239.74,33.08]
[1757708632029,0.76,239.78,239.74,33.08]
[1757708632227,0.76,239.78,239.74,37.25118509]
[1757708632759,0.06,239.78,239.74,37.25109615]
[1757708632926,0.7,239.77,239.76,26.0]
[1757708633123,0.7,239.77,239.74,26.0]
[1757708633328,0.7,239.76,239.75,33.06]
[1757708633524,0.06,239.78,239.75,33.06]
[1757708633739,0.7,239.77,239.75,33.06]
[1757708634155,0.7,239.77,239.75,37.23087315]
[1757708634933,0.06,239.78,239.75,37.89087315]
[1757708635560,0.66,239.77,239.75,33.06]
[1757708640054,0.66,239.76,239.75,33.06]
[1757708640363,0.06,239.78,239.75,33.06]
[1757708640364,0.72,239.78,239.75,33.06]
[1757708640566,0.06,239.78,239.76,0.66]
[1757708640871,0.06,239.81,239.77,33.47706635]
[1757708641065,0.06,239.81,239.78,0.66]
[1757708641265,0.06,239.81,239.79,33.7]
[1757708641563,0.06,239.81,239.8,37.21014178]
[1757708641747,1.10114815,239.81,239.8,37.21014178]
[1757708641949,1.76114815,239.81,239.8,33.04]
[1757708643170,1.10114815,239.81,239.8,37.21014178]
[1757708644869,1.10114815,239.81,239.8,33.04]
[1757708645865,1.10114815,239.81,239.8,37.21014178]
[1757708646369,0.06,239.81,239.8,37.21014178]
[1757708648363,0.06,239.81,239.8,37.62715595]
[1757708648767,0.06,239.81,239.8,37.21014178]
[1757708649154,0.06,239.83,239.82,26.0]
[1757708649355,1.10108205,239.83,239.82,59.02]
[1757708649558,0.06,239.83,239.82,26.0]
[1757708649762,0.06,239.84,239.82,30.16965322]
[1757708650070,0.06,239.84,239.83,33.02]
[1757708650275,1.10106553,239.84,239.83,33.02]
[1757708650880,0.06,239.84,239.83,33.02]
[1757708651378,0.2,239.86,239.83,33.02]
[1757708651563,1.04106538,239.85,239.83,33.02]
[1757708651764,1.04106538,239.84,239.83,33.02]
[1757708652072,0.86,239.86,239.83,33.02]
[1757708652073,0.2,239.86,239.83,33.02]
[1757708652777,0.2,239.86,239.83,37.18962014]
[1757708652981,0.2,239.88,239.84,0.66]
[1757708653479,0.86,239.88,239.84,0.66]
[1757708653778,0.86,239.88,239.83,37.18962014]
[1757708653977,0.86,239.88,239.83,37.84962014]
[1757708654176,0.66,239.87,239.83,33.02]
[1757708654365,0.66,239.86,239.83,33.02]
[1757708656168,0.2,239.88,239.83,33.02]
[1757708656468,0.86,239.88,239.83,33.68]
[1757708657895,0.66,239.87,239.83,33.02]
[1757708658060,0.66,239.86,239.83,33.02]
[1757708658262,0.66,239.85,239.83,33.02]
[1757708660206,0.86,239.88,239.83,33.02]
[1757708660389,0.66,239.87,239.83,33.02]
[1757708660591,0.2,239.88,239.83,33.68]
[1757708660895,0.86,239.88,239.83,37.84960347]
[1757708661880,0.86,239.88,239.83,33.68]
[1757708663388,0.86,239.88,239.83,33.02]
[1757708663389,0.66,239.87,239.83,33.02]
[1757708663594,0.2,239.88,239.83,37.18957229]
[1757708663966,0.92,239.88,239.83,33.7]
[1757708664585,0.72,239.87,239.83,33.02]
[1757708664798,0.72,239.86,239.83,33.02]
[1757708664992,0.2,239.88,239.83,33.7]
[1757708665190,0.2,239.88,239.83,37.18961229]
[1757708665389,0.92,239.88,239.83,33.7]
[1757708665587,0.2,239.88,239.83,33.73]
[1757708665979,0.72,239.87,239.83,33.05]
[1757708666501,0.72,239.87,239.82,25.53]
[1757708666797,0.72,239.87,239.82,0.68]
[1757708667583,0.2,239.88,239.81,4.16996789]
[1757708667781,0.2,239.88,239.83,0.68]
[1757708667981,0.2,239.88,239.84,0.68]
[1757708670287,0.2,239.88,239.82,58.96]
[1757708670484,0.2,239.88,239.82,59.64]
[1757708670885,0.72,239.87,239.82,58.96]
[1757708671105,0.72,239.86,239.82,58.96]
[1757708671301,0.92,239.88,239.82,59.64]
[1757708671483,1.04089175,239.87,239.82,59.64]
[1757708671681,0.72,239.87,239.82,59.64]
[1757708673906,0.72,239.86,239.82,58.96]
[1757708674584,0.92,239.88,239.82,59.64]
[1757708675187,1.04089166,239.87,239.82,59.64]
[1757708675383,0.72,239.87,239.82,59.64]
[1757708677184,0.72,239.86,239.82,58.96]
[1757708678599,0.92,239.88,239.82,59.64]
[1757708678790,1.04090677,239.87,239.82,59.64]
[1757708678991,0.92,239.88,239.83,0.68]
[1757708679307,1.04090685,239.87,239.83,0.68]
[1757708679604,0.92,239.88,239.83,0.68]
[1757708679815,1.04090677,239.87,239.83,0.68]
[1757708679998,0.92,239.88,239.83,0.68]
[1757708680199,1.04090677,239.87,239.83,0.68]
[1757708680511,0.92,239.88,239.83,0.68]
[1757708680705,1.04090677,239.87,239.83,0.68]
[1757708681008,0.2,239.88,239.83,0.68]
[1757708681215,1.76090677,239.87,239.83,0.68]
[1757708681405,1.04090677,239.86,239.83,0.68]
[1757708681602,0.72,239.87,239.83,0.68]
[1757708681810,1.04090677,239.86,239.82,58.96]
[1757708681993,0.72,239.87,239.82,59.64]
[1757708682193,1.04090692,239.86,239.82,59.64]
[1757708682405,0.72,239.87,239.82,59.64]
[1757708682593,1.04090685,239.86,239.82,59.64]
[1757708682790,0.72,239.87,239.82,59.64]
[1757708682989,1.04090692,239.86,239.82,59.64]
[1757708683186,0.72,239.87,239.82,59.67]
[1757708683416,1.04090685,239.86,239.82,59.67]
[1757708683709,0.72,239.87,239.82,59.67]
[1757708683899,1.04090692,239.86,239.82,59.67]
[1757708684101,0.72,239.87,239.82,59.67]
[1757708684303,1.04090685,239.86,239.82,59.67]
[1757708684512,0.72,239.87,239.83,1.66760469]
[1757708684711,1.04090692,239.86,239.83,1.66760469]
[1757708685020,0.72,239.87,239.83,1.66760469]
[1757708685229,1.0409122,239.86,239.83,1.66760469]
[1757708685388,0.72,239.87,239.83,1.66760469]
[1757708685588,1.0409122,239.86,239.83,1.66760469]
[1757708685791,0.72,239.87,239.83,1.66760469]
[1757708686021,1.0409122,239.86,239.83,1.66760469]
[1757708686320,1.0409122,239.85,239.84,26.0]
[1757708687026,1.0409122,239.85,239.83,26.0]
[1757708687324,0.72,239.87,239.83,26.0]
[1757708687516,1.04091213,239.86,239.83,26.0]
[1757708687717,1.04091213,239.85,239.83,26.0]
[1757708687917,0.72,239.87,239.83,26.0]
[1757708688090,1.04091228,239.86,239.83,26.0]
[1757708688293,0.72,239.87,239.83,26.0]
[1757708688294,1.04091228,239.85,239.83,26.0]
[1757708688493,0.72,239.87,239.83,26.0]
[1757708688718,1.04091228,239.86,239.83,27.66760469]
[1757708689019,1.04091228,239.85,239.83,27.66760469]
[1757708689210,0.72,239.87,239.83,27.66760469]
[1757708689416,1.04091228,239.86,239.83,27.66760469]
[1757708689599,1.73091228,239.85,239.83,27.66760469]
[1757708689798,0.69,239.85,239.83,26.0]
[1757708690001,1.73091763,239.84,239.82,0.03]
[1757708690295,1.04098456,239.83,239.82,0.03]
[1757708690501,1.04098456,239.83,239.82,1.76091228]
[1757708690703,1.73098456,239.83,239.82,1.76091228]
[1757708691021,0.2,239.88,239.82,1.76091228]
[1757708691022,0.2,239.88,239.82,26.71]
[1757708691203,1.04092206,239.87,239.83,1.09696201]
[1757708691523,1.04092206,239.86,239.84,0.68]
[1757708691721,1.04090609,239.85,239.84,2.34760469]
[1757708692024,0.2,239.88,239.84,2.34760469]
[1757708692521,0.89,239.88,239.84,0.68]
[1757708692698,0.89,239.88,239.84,26.68]
[1757708692893,0.89,239.88,239.84,28.3476047]
[1757708693619,0.89,239.88,239.84,26.0]
[1757708693822,0.69,239.87,239.84,26.0]
[1757708695405,0.69,239.87,239.83,27.66760469]
[1757708695607,0.2,239.88,239.83,27.66760469]
[1757708695806,0.88,239.88,239.83,28.34760469]
[1757708696443,0.68,239.87,239.83,27.66760469]
[1757708696723,0.88,239.88,239.83,26.68]
[1757708696913,0.68,239.87,239.83,28.34767422]
[1757708697800,0.2,239.88,239.83,27.66767422]
[1757708698000,0.68,239.86,239.83,27.66767422]
[1757708698201,0.68,239.86,239.83,26.0]
[1757708698609,0.2,239.88,239.83,26.0]
[1757708698801,0.68,239.87,239.83,26.0]
[1757708699835,0.68,239.87,239.84,26.0]
[1757708701408,0.2,239.88,239.84,26.0]
[1757708701722,0.68,239.86,239.84,26.0]
[1757708702038,0.06,239.87,239.83,1.66774375]
[1757708702351,0.74,239.87,239.83,1.66774375]
[1757708702751,0.06,239.87,239.83,1.66774375]
[1757708703023,0.68,239.86,239.82,26.03]
[1757708703233,0.06,239.87,239.82,26.03]
[1757708703234,0.68,239.85,239.82,26.03]
[1757708703404,0.68,239.84,239.82,26.03]
[1757708703607,0.68,239.83,239.82,27.69774375]
[1757708704017,0.68,239.83,239.82,26.03]
[1757708704412,0.68,239.83,239.82,0.03]
[1757708712645,0.06,239.87,239.82,0.03]
[1757708712646,0.06,239.87,239.82,26.71]
[1757708712819,0.68,239.86,239.82,26.03]
[1757708713017,0.06,239.87,239.83,0.68]
[1757708714041,0.06,239.87,239.83,2.34774375]
[1757708714523,0.06,239.87,239.83,0.68]
[1757708714724,0.74,239.87,239.83,0.68]
[1757708715134,0.06,239.87,239.83,0.68]
[1757708715334,0.06,239.87,239.83,2.34774375]
[1757708716141,0.06,239.87,239.83,6.51734521]
[1757708716456,0.06,239.87,239.83,2.34774375]
[1757708716944,0.06,239.87,239.83,6.51733112]
[1757708717145,0.06,239.87,239.84,0.68]
[1757708717720,0.06,239.87,239.84,2.34760469]
[1757708719224,0.06,239.87,239.85,0.68]
[1757708719730,0.06,239.87,239.86,0.68]
[1757708720835,0.06,239.87,239.84,5.83699682]
[1757708721149,0.06,239.87,239.84,28.34760469]
[1757708721328,0.06,239.87,239.84,32.51702959]
[1757708721525,0.06,239.87,239.84,28.34760469]
[1757708722125,0.06,239.87,239.85,0.68]
[1757708722947,0.06,239.87,239.84,32.51703635]
[1757708725740,0.06,239.87,239.85,26.0]
[1757708726521,0.06,239.87,239.84,28.34760469]
[1757708726724,0.06,239.87,239.84,27.66760469]
[1757708726948,0.06,239.87,239.84,28.34760469]
[1757708727154,14.01260818,239.86,239.75,0.03]
[1757708727450,13.59559401,239.82,239.75,0.03]
[1757708727749,13.59559401,239.8,239.75,0.03]
[1757708727921,13.59559401,239.78,239.75,0.03]
[1757708728126,26.65521861,239.76,239.75,0.03]
[1757708728325,26.65521861,239.76,239.72,0.03]
[1757708728547,2.61192492,239.73,239.72,0.03]
[1757708728942,3.33192492,239.73,239.72,0.03]
[1757708729336,5.00113017,239.73,239.72,0.03]
[1757708731237,2.38920525,239.73,239.72,0.03]
[1757708733541,1.66920525,239.73,239.72,0.03]
[1757708733738,0.72,239.77,239.72,0.03]
[1757708733739,26.0,239.76,239.72,0.03]
[1757708733938,2.08594084,239.75,239.72,0.03]
[1757708734239,2.80594084,239.75,239.72,0.03]
[1757708734838,0.72,239.74,239.72,0.03]
[1757708735352,1.66892667,239.75,239.72,0.03]
[1757708735651,12.33829627,239.87,239.73,0.71]
[1757708735652,1.6687178,239.8,239.73,0.71]
[1757708735843,0.41701417,239.79,239.73,0.71]
[1757708736042,0.41701417,239.8,239.73,0.71]
[1757708736232,0.72,239.79,239.73,0.71]
[1757708736434,0.41701417,239.78,239.72,0.03]
[1757708737053,1.13701417,239.78,239.72,0.03]
[1757708737654,2.80580159,239.78,239.72,0.03]
[1757708739936,1.13701417,239.78,239.72,0.03]
[1757708740141,1.19701417,239.78,239.72,0.03]
[1757708741360,2.86580158,239.78,239.72,0.03]
[1757708742045,39.59559401,239.77,239.72,0.03]
[1757708742240,13.59559401,239.75,239.72,0.03]
[1757708742441,0.41701417,239.74,239.72,0.03]
[1757708742756,1.13701417,239.74,239.72,0.03]
[1757708742942,1.66920525,239.73,239.72,0.03]
[1757708743264,0.72,239.77,239.72,0.03]
[1757708743452,2.80594084,239.76,239.72,0.03]
[1757708743962,1.13701417,239.76,239.72,0.03]
[1757708744764,0.41701417,239.76,239.72,0.03]